bitfinex-derivatives/quotes_ETHF0:USTF0_20250910
["timestamp","ask_amount","ask_price","bid_price","bid_amount"]
[1757473298743,0.234,4314.9,4314.8,0.7268]
[1757473299044,0.5122,4315.2,4315.1,0.7268]
[1757473299242,1.54238852,4315.8,4315.7,0.408]
[1757473299449,1.97468852,4315.8,4315.7,0.7268]
[1757473300552,1.97468852,4315.8,4315.4,0.3188]
[1757473300753,1.74068852,4315.5,4315.4,0.7268]
[1757473301855,0.2007,4315.5,4315.4,0.7268]
[1757473302051,0.4347,4315.5,4315.4,0.7268]
[1757473302252,1.23088852,4315.5,4315.4,0.7268]
[1757473302454,1.77638852,4315.5,4315.4,0.7268]
[1757473304258,0.7462,4315.5,4315.4,0.7268]
[1757473304447,0.4347,4315.5,4315.4,0.7268]
[1757473304955,0.2007,4315.5,4315.4,0.7268]
[1757473305158,0.4347,4315.5,4315.4,0.7268]
[1757473305358,0.7462,4315.5,4315.4,0.7268]
[1757473306259,0.5122,4315.8,4315.7,0.408]
[1757473306563,0.7462,4315.8,4315.7,0.7268]
[1757473307162,0.5122,4315.8,4315.7,0.7268]
[1757473307362,0.7462,4315.8,4315.7,0.7268]
[1757473308457,0.9445,4315.8,4315.7,0.7268]
[1757473310062,0.7105,4315.8,4315.7,0.7268]
[1757473310267,0.9445,4315.8,4315.7,0.7268]
[1757473310464,0.7105,4315.8,4315.7,0.7268]
[1757473310665,0.9445,4315.8,4315.7,0.7268]
[1757473313778,0.9445,4315.8,4315.7,0.2021]
[1757473315281,0.9445,4315.8,4315.7,0.5194]
[1757473318183,0.9445,4315.8,4315.7,0.73]
[1757473319380,0.1983,4315.8,4315.7,0.73]
[1757473319682,0.208,4317.1,4317.0,0.3421]
[1757473319883,0.236,4317.1,4317.0,0.5527]
[1757473320281,0.236,4317.1,4317.0,0.87]
[1757473320480,33.388,4318.0,4317.1,0.3173]
[1757473320481,1.03018852,4317.5,4317.1,0.3173]
[1757473320680,1.03018852,4317.5,4317.4,0.7413]
[1757473320983,1.03018852,4317.6,4317.5,0.6594]
[1757473321185,1.26618852,4317.6,4317.5,0.87]
[1757473321573,1.03018852,4317.6,4317.5,0.87]
[1757473321779,1.26618852,4317.6,4317.5,0.87]
[1757473322281,1.03018852,4317.6,4317.5,0.87]
[1757473322585,1.26618852,4317.6,4317.5,0.87]
[1757473324084,1.26618852,4317.6,4317.5,0.6594]
[1757473324385,1.26618852,4317.6,4317.5,0.446]
[1757473325985,1.26618852,4317.6,4317.5,0.6594]
[1757473326581,0.236,4317.6,4317.5,0.6594]
[1757473326884,1.26618852,4317.6,4317.5,0.6594]
[1757473333195,1.26618852,4317.6,4317.5,0.446]
[1757473335496,1.26618852,4317.6,4317.5,0.6594]
[1757473337496,1.26618852,4317.6,4317.5,0.446]
[1757473339091,1.26618852,4317.6,4317.5,0.645]
[1757473342897,1.26618852,4317.6,4317.5,0.8544]
[1757473347003,1.26618852,4317.6,4317.5,0.446]
[1757473347210,1.75418393,4317.6,4317.5,0.446]
[1757473347503,1.75418393,4317.6,4317.5,0.434]
[1757473349200,1.75418393,4317.6,4317.5,0.633]
[1757473352306,1.94239147,4317.6,4317.5,0.633]
[1757473353413,1.94239147,4317.6,4317.5,0.3173]
[1757473353614,1.94239147,4317.6,4317.0,0.1287]
[1757473353816,0.48799541,4317.5,4317.1,0.199]
[1757473354012,0.48799541,4317.5,4317.2,0.5208]
[1757473354013,0.235,4317.4,4317.2,0.5208]
[1757473354213,0.48799541,4317.3,4317.2,0.5208]
[1757473357616,0.48799541,4317.3,4317.2,0.7302]
[1757473359310,0.48799541,4317.3,4317.2,0.3218]
[1757473359508,0.48799541,4317.3,4316.7,0.3218]
[1757473359712,1.21839606,4316.8,4316.7,0.3218]
[1757473359908,1.94139147,4316.8,4316.7,0.5208]
[1757473363925,1.94139147,4316.8,4316.7,0.3218]
[1757473364422,1.94139147,4316.8,4316.7,0.5208]
[1757473365117,1.94139147,4316.8,4316.7,0.3218]
[1757473368523,0.406,4316.6,4316.0,1.37714029]
[1757473368720,1.93849606,4316.1,4316.0,0.211]
[1757473368926,2.66049433,4316.1,4316.0,0.211]
[1757473369424,2.17249606,4316.1,4316.0,0.211]
[1757473370628,2.17249606,4316.1,4316.0,0.5306]
[1757473371524,2.17249606,4316.1,4316.0,0.3196]
[1757473371828,2.17249606,4316.1,4316.0,0.5306]
[1757473372830,2.17249606,4316.1,4316.0,0.8636]
[1757473375633,0.64,4316.1,4316.0,0.8636]
[1757473375833,1.65509606,4316.1,4316.0,0.8636]
[1757473376125,1.42109606,4316.1,4316.0,0.8636]
[1757473376332,1.21839606,4316.3,4316.2,0.7412]
[1757473376532,1.65509606,4316.3,4316.2,0.7412]
[1757473377230,2.17249606,4316.3,4316.2,0.7412]
[1757473377429,2.17249606,4316.3,4316.2,0.3196]
[1757473378034,2.17249606,4316.3,4315.6,0.3196]
[1757473378225,1.21839606,4315.8,4315.7,0.4216]
[1757473378426,1.93849606,4315.8,4315.7,0.7412]
[1757473379329,35.32049606,4315.8,4315.1,0.3196]
[1757473379533,1.21839606,4315.2,4315.1,0.7412]
[1757473379733,1.45239606,4315.2,4315.1,0.7412]
[1757473380620,1.21839606,4315.5,4315.2,0.3196]
[1757473380834,1.21839606,4315.5,4315.4,0.7412]
[1757473381026,1.45239606,4315.5,4315.4,0.7412]
[1757473381424,1.21839606,4315.5,4315.4,0.7412]
[1757473381732,33.382,4315.8,4315.5,0.442]
[1757473382032,34.1021,4315.8,4315.7,0.7412]
[1757473382628,34.3361,4315.8,4315.7,0.7412]
[1757473382825,34.3361,4315.8,4315.7,0.5306]
[1757473383026,34.3361,4315.8,4314.7,1.24844029]
[1757473383235,1.93849606,4315.5,4315.4,0.211]
[1757473383429,1.93849606,4315.5,4315.4,0.5306]
[1757473383636,1.93849606,4315.5,4314.7,1.24844029]
[1757473383935,1.93849606,4315.1,4315.0,0.6473]
[1757473384233,2.17249606,4315.1,4315.0,0.6473]
[1757473384635,2.17249606,4315.1,4315.0,0.8579]
[1757473387036,2.17249606,4315.1,4315.0,0.3196]
[1757473387434,2.17249606,4315.1,4314.5,0.1224]
[1757473387635,2.17249606,4315.1,4314.6,0.3196]
[1757473388335,1.93849606,4314.7,4314.6,0.5306]
[1757473390536,1.93849606,4314.7,4314.1,0.3196]
[1757473392932,1.21839606,4314.3,4314.2,0.211]
[1757473393236,1.85839606,4314.3,4314.2,0.211]
[1757473393436,1.85839606,4314.3,4314.2,0.7412]
[1757473393638,2.17249606,4314.3,4314.2,0.7412]
[1757473395735,2.17249606,4314.3,4314.2,0.3196]
[1757473396236,2.35964408,4314.3,4313.6,0.3196]
[1757473396442,1.85839606,4314.3,4313.6,0.23181]
[1757473396636,0.7201,4313.8,4313.7,0.7412]
[1757473396832,0.7179,4313.8,4313.7,0.7412]
[1757473397037,0.2027,4313.8,4313.7,0.7412]
[1757473397238,0.234,4313.8,4313.7,0.7412]
[1757473398234,1.53029606,4314.3,4313.7,0.4216]
[1757473398541,0.1963,4314.1,4314.0,0.1171]
[1757473398740,0.1963,4314.1,4314.0,0.5203]
[1757473398948,0.4303,4314.1,4314.0,0.8124]
[1757473400043,1.21839606,4314.3,4314.0,0.5203]
[1757473400240,0.234,4314.2,4314.1,0.6953]
[1757473402048,0.4303,4314.2,4314.1,0.6953]
[1757473406052,0.234,4314.2,4314.1,0.6953]
[1757473407242,0.4303,4314.2,4314.1,0.6953]
[1757473408046,0.9462,4314.2,4314.1,0.6953]
[1757473410151,0.4303,4314.2,4314.1,0.4032]
[1757473410356,0.9462,4314.2,4314.1,0.4032]
[1757473410856,0.9462,4314.2,4314.1,0.6953]
[1757473411356,2.16459606,4314.2,4314.1,0.6953]
[1757473412457,1.97643003,4314.2,4314.1,0.6953]
[1757473413164,1.03023003,4314.3,4314.1,0.4032]
[1757473413363,1.03023003,4314.3,4314.2,0.6953]
[1757473413551,1.26423003,4314.3,4314.2,0.6953]
[1757473414260,1.46053003,4314.3,4314.2,0.6953]
[1757473414861,1.22653003,4314.3,4314.2,0.6953]
[1757473415059,1.46053003,4314.3,4314.2,0.6953]
[1757473416052,1.97643003,4314.3,4314.2,0.6953]
[1757473419257,1.97643003,4314.3,4314.2,1.94374029]
[1757473419759,1.97643003,4314.3,4314.2,0.6953]
[1757473420257,1.97643003,4314.3,4314.2,1.94374029]
[1757473423160,1.74243003,4314.3,4314.2,1.94374029]
[1757473423361,1.97643003,4314.3,4314.2,1.94374029]
[1757473425364,1.97643003,4314.3,4314.2,0.6953]
[1757473426271,1.74243003,4314.3,4314.2,0.6953]
[1757473426465,1.46053003,4314.3,4314.2,0.6953]
[1757473427171,34.63643003,4314.6,4314.5,0.8583]
[1757473427366,35.88995878,4314.6,4314.5,0.8583]
[1757473430366,35.88995878,4314.6,4314.5,0.7303]
[1757473431568,34.09602875,4314.6,4314.5,0.8583]
[1757473431873,34.12082875,4314.6,4314.5,2.11045342]
[1757473432069,33.397,4314.6,4314.5,0.8583]
[1757473432271,33.631,4314.6,4314.5,0.8583]
[1757473432469,33.397,4314.6,4314.5,0.8583]
[1757473432674,33.631,4314.6,4314.5,0.8583]
[1757473433067,33.397,4314.6,4314.5,0.8583]
[1757473433263,33.631,4314.6,4314.5,0.8583]
[1757473433463,0.234,4314.6,4314.5,0.8583]
[1757473435984,1.03023003,4315.1,4315.0,0.128]
[1757473436185,1.47343003,4315.1,4315.0,0.8583]
[1757473436386,1.23943003,4315.1,4315.0,0.8583]
[1757473436687,2.00313003,4315.1,4315.0,0.8583]
[1757473437087,1.68833003,4315.1,4315.0,0.8583]
[1757473437283,0.6581,4315.1,4315.0,0.8583]
[1757473437478,33.397,4315.5,4315.1,0.305]
[1757473437681,33.397,4315.5,4315.3,0.7303]
[1757473437682,0.234,4315.4,4315.3,0.7303]
[1757473440891,0.4432,4315.4,4315.3,0.7303]
[1757473442089,0.9729,4315.4,4315.3,0.5184]
[1757473442292,0.9729,4315.4,4314.7,1.24996426]
[1757473442293,0.7389,4314.8,4314.7,1.24996426]
[1757473442492,0.4241,4314.3,4314.1,1.24996426]
[1757473442688,0.7389,4314.3,4314.2,0.5184]
[1757473442889,0.9579,4314.3,4314.2,0.5184]
[1757473443089,0.9579,4314.3,4314.2,0.7303]
[1757473443497,0.219,4314.3,4314.2,0.7303]
[1757473443989,0.219,4314.3,4314.2,1.76053003]
[1757473445392,0.0885,4315.5,4314.2,1.76053003]
[1757473445393,0.7389,4316.1,4316.0,0.2134]
[1757473445594,1.46105305,4316.1,4316.0,0.305]
[1757473445790,0.4241,4315.6,4315.5,0.5533]
[1757473445984,0.9729,4315.6,4315.5,0.8583]
[1757473448091,0.6581,4315.6,4315.5,0.8583]
[1757473448894,33.393,4316.9,4315.5,0.8583]
[1757473448895,0.3148,4316.2,4315.5,1.88853003]
[1757473449091,0.6581,4316.1,4316.0,0.5533]
[1757473449392,0.9729,4316.1,4316.0,0.8583]
[1757473449593,0.4432,4316.1,4316.0,0.8583]
[1757473449792,0.234,4316.1,4316.0,0.8583]
[1757473452196,33.393,4316.9,4316.0,4.8583]
[1757473452401,33.6022,4316.9,4316.8,0.7303]
[1757473452598,33.8362,4316.9,4316.8,0.7303]
[1757473452794,33.393,4316.9,4316.8,0.7303]
[1757473452999,33.627,4316.9,4316.8,0.7303]
[1757473453395,33.8362,4316.9,4316.8,0.7303]
[1757473453591,34.3659,4316.9,4316.8,0.7303]
[1757473453790,33.627,4316.9,4316.8,0.7303]
[1757473453996,0.234,4316.9,4316.8,0.7303]
[1757473455606,0.4432,4316.9,4316.8,0.7303]
[1757473458802,0.1166,4318.0,4316.8,0.4253]
[1757473459110,0.2148,4317.7,4317.6,0.4198]
[1757473459301,0.7367,4318.0,4317.9,0.4198]
[1757473459496,0.234,4318.3,4318.2,0.7384]
[1757473459806,0.3146,4318.9,4318.2,1.45003003]
[1757473460003,0.9707,4318.9,4318.8,1.76863003]
[1757473460200,0.6561,4318.9,4318.8,1.76863003]
[1757473461002,0.4488,4318.9,4318.8,1.76863003]
[1757473464106,0.234,4318.9,4318.8,1.76863003]
[1757473464313,34.1187,4319.7,4319.6,0.5335]
[1757473464507,34.3527,4319.7,4319.6,1.76863003]
[1757473465210,38.5842,4319.7,4319.1,0.3186]
[1757473465514,34.5842,4319.7,4318.7,1.03023003]
[1757473465704,0.4221,4318.9,4318.8,0.7384]
[1757473465905,0.234,4319.1,4319.0,0.1182]
[1757473466115,0.234,4319.1,4319.0,1.88683003]
[1757473466609,0.7367,4318.3,4317.6,0.3186]
[1757473466804,0.7367,4317.7,4317.1,0.3186]
[1757473467008,0.7367,4316.8,4316.7,1.56373003]
[1757473467210,0.7367,4316.8,4316.7,1.76863003]
[1757473467411,0.4221,4316.8,4316.7,1.76863003]
[1757473467814,0.223,4317.0,4316.7,1.45003003]
[1757473468013,0.084,4317.5,4317.4,0.3186]
[1757473468216,0.084,4317.5,4317.4,0.7384]
[1757473468519,0.2988,4317.5,4317.4,0.7384]
[1757473468812,0.084,4317.5,4317.4,0.7384]
[1757473469906,0.5061,4317.5,4317.4,0.7384]
[1757473470108,0.9092,4317.5,4316.6,0.3186]
[1757473470312,0.4221,4316.9,4316.8,1.24513003]
[1757473470513,0.7367,4316.9,4316.8,1.56373003]
[1757473471211,0.7367,4316.9,4316.8,1.03023003]
[1757473471410,0.7367,4316.9,4316.8,1.56373003]
[1757473471812,0.3146,4316.8,4316.5,1.46703003]
[1757473472014,0.7367,4316.6,4316.5,0.3186]
[1757473472518,0.7367,4316.6,4316.5,0.5335]
[1757473473022,0.0885,4317.5,4316.6,0.3186]
[1757473473225,0.78124,4317.4,4316.6,0.3186]
[1757473473821,0.5496,4317.4,4316.6,0.3186]
[1757473478322,0.2148,4316.7,4316.6,0.7384]
[1757473479926,0.4498,4317.4,4317.3,0.7384]
[1757473483124,0.6571,4317.4,4317.3,0.7384]
[1757473484031,0.9717,4317.4,4317.3,0.7384]
[1757473484830,0.6571,4317.4,4317.3,0.7384]
[1757473489531,0.9747,4317.4,4317.3,0.5335]
[1757473490432,0.9747,4317.4,4317.3,0.7313]
[1757473490834,0.6571,4317.4,4317.3,0.7313]
[1757473491036,0.4498,4317.4,4317.3,0.7313]
[1757473494124,0.9774,4317.4,4317.3,0.7313]
[1757473495029,0.9774,4317.4,4316.9,0.00347283]
[1757473495229,0.6598,4317.4,4316.9,1.54999506]
[1757473495436,0.737,4317.0,4316.9,1.54999506]
[1757473495738,0.737,4317.0,4316.9,1.74529506]
[1757473496234,0.737,4317.0,4316.9,0.49787283]
[1757473497136,0.737,4317.0,4316.9,0.69567283]
[1757473501640,0.2094,4317.0,4316.9,0.69567283]
[1757473502030,0.527,4317.3,4317.2,0.3931]
[1757473502230,0.737,4317.3,4317.2,0.6922]
[1757473502434,0.2094,4317.3,4317.2,1.91005777]
[1757473502640,0.234,4317.3,4317.2,1.91005777]
[1757473504541,0.234,4317.3,4317.2,0.2991]
[1757473504542,0.971,4317.3,4317.2,0.2991]
[1757473506743,0.971,4317.3,4316.9,0.00347283]
[1757473508342,0.971,4317.3,4317.0,0.2991]
[1757473508640,0.971,4317.3,4317.2,1.25105015]
[1757473508843,1.46209006,4317.3,4317.2,1.25105015]
[1757473509344,1.46209006,4317.3,4317.2,1.55015015]
[1757473509538,1.46209006,4317.3,4317.2,1.25105015]
[1757473511444,1.46209006,4317.3,4317.2,1.55015015]
[1757473514939,1.46209006,4317.3,4317.2,1.25105015]
[1757473515650,0.971,4317.3,4317.2,1.25105015]
[1757473516654,5.69362586,4317.3,4317.1,1.25105015]
[1757473516844,5.69362586,4317.3,4316.9,1.25452298]
[1757473516845,0.4969,4317.0,4316.9,1.25452298]
[1757473517149,0.8152,4317.0,4316.9,1.25452298]
[1757473517947,0.8152,4317.0,4316.9,0.00347283]
[1757473519453,1.30599694,4317.0,4316.9,0.00347283]
[1757473524254,1.30599694,4317.0,4316.9,0.31767283]
[1757473524451,1.21769694,4317.0,4316.9,0.52397283]
[1757473525157,1.21769694,4317.0,4316.9,0.31767283]
[1757473526052,1.21769694,4317.0,4316.9,0.00347283]
[1757473526253,1.30559694,4317.0,4316.9,0.00347283]
[1757473527151,0.4086,4316.3,4316.2,1.25105015]
[1757473527463,0.9609,4316.3,4316.1,0.3142]
[1757473528974,0.9609,4316.3,4315.7,1.25105015]
[1757473529277,0.2017,4315.9,4315.8,0.7279]
[1757473532875,0.234,4316.3,4315.8,0.7279]
[1757473533080,33.378,4316.6,4316.5,0.8524]
[1757473533271,33.612,4316.6,4316.5,0.8524]
[1757473534578,33.8137,4316.6,4316.5,0.8524]
[1757473534877,34.0206,4316.6,4316.5,0.8524]
[1757473535672,34.3389,4316.6,4316.5,0.8524]
[1757473536067,34.3389,4316.6,4316.1,0.3142]
[1757473536476,35.36798878,4316.6,4316.1,0.3142]
[1757473538478,35.36798878,4316.6,4316.1,1.56525015]
[1757473538679,35.04968878,4316.6,4316.1,1.25105015]
[1757473538877,0.7269,4316.3,4316.2,0.5205]
[1757473542182,0.9609,4316.3,4316.2,0.5205]
[1757473542684,0.9609,4316.3,4316.2,0.7279]
[1757473544181,0.7269,4316.2,4316.0,1.25105015]
[1757473544479,0.4086,4315.7,4315.6,1.25105015]
[1757473544676,0.9609,4315.7,4315.6,0.3142]
[1757473545187,0.6426,4315.7,4315.5,1.25105015]
[1757473545488,0.7269,4315.3,4315.2,1.56525015]
[1757473545783,0.6426,4315.3,4315.2,0.7279]
[1757473546182,0.2017,4315.3,4315.2,0.7279]
[1757473546380,0.234,4315.3,4315.2,0.7279]
[1757473546779,0.3183,4315.9,4315.5,0.1184]
[1757473547088,1.44984615,4315.8,4315.7,0.7033]
[1757473547980,0.234,4315.8,4315.7,0.7033]
[1757473548286,0.4471,4315.8,4315.7,0.7033]
[1757473548687,0.234,4315.8,4315.7,0.7033]
[1757473549385,0.4471,4315.8,4315.7,0.7033]
[1757473550990,1.98898878,4315.8,4315.7,0.3074]
[1757473551590,1.98898878,4315.8,4315.7,0.5062]
[1757473551787,0.3087,4316.4,4315.8,0.3074]
[1757473552087,0.9599,4316.3,4316.2,0.7033]
[1757473553187,0.7259,4316.3,4316.2,0.7033]
[1757473553491,0.4481,4316.3,4316.2,0.7033]
[1757473556484,1.98998878,4316.3,4316.2,0.7033]
[1757473557487,1.68128878,4316.3,4316.2,0.7033]
[1757473558579,33.378,4316.6,4316.2,0.7033]
[1757473558785,0.234,4316.3,4316.2,0.7033]
[1757473560082,0.234,4316.3,4315.6,1.02908878]
[1757473560083,0.4172,4315.9,4315.8,0.3074]
[1757473560284,0.4172,4315.9,4315.2,1.25105015]
[1757473560285,0.7259,4315.7,4315.2,1.25105015]
[1757473560483,1.75498878,4315.4,4315.3,0.5062]
[1757473560985,1.75498878,4315.4,4314.9,1.25105015]
[1757473560986,0.4172,4315.0,4314.9,1.25105015]
[1757473561183,0.7259,4314.9,4314.6,1.25105015]
[1757473561487,0.2131,4314.7,4314.6,0.7033]
[1757473565583,0.235,4315.0,4314.6,0.3959]
[1757473565782,0.2131,4314.7,4314.6,0.5062]
[1757473565983,0.2131,4314.7,4314.6,0.7033]
[1757473566484,0.00347283,4315.2,4315.1,0.7033]
[1757473566682,0.42957283,4315.2,4315.1,0.7033]
[1757473568991,1.97146161,4315.2,4314.6,0.3074]
[1757473569290,1.97146161,4315.2,4315.1,0.5062]
[1757473571394,1.25176334,4316.3,4315.0,0.1184]
[1757473571589,1.25176334,4316.7,4316.2,1.02908878]
[1757473571795,0.18365162,4318.2,4317.9,0.3959]
[1757473571998,0.18365162,4318.2,4317.5,0.0952]
[1757473571999,0.4491,4318.4,4318.3,0.3959]
[1757473572194,0.4491,4318.4,4318.3,0.69019346]
[1757473572397,0.6532,4318.4,4318.3,0.3959]
[1757473573300,0.6532,4318.4,4318.3,0.71918514]
[1757473573901,0.9619,4318.4,4318.3,0.71918514]
[1757473575997,0.9619,4318.4,4318.3,0.71836486]
[1757473578102,0.7578,4318.4,4318.3,1.02666486]
[1757473579608,0.7578,4318.4,4318.3,0.7042]
[1757473580602,0.9709,4318.4,4318.3,0.3959]
[1757473590014,0.9709,4318.4,4317.5,0.0952]
[1757473590213,0.9709,4318.4,4317.6,0.62938309]
[1757473590214,0.236,4318.4,4317.6,0.62938309]
[1757473590517,0.2953,4318.3,4317.7,0.32108309]
[1757473590715,0.4948,4317.9,4317.8,1.04308309]
[1757473591414,0.7079,4317.9,4317.8,0.32108309]
[1757473591714,0.7079,4317.9,4317.8,0.52048309]
[1757473592007,0.7079,4317.9,4317.8,0.73478309]
[1757473592206,0.7079,4317.9,4317.8,1.04308309]
[1757473593910,0.7079,4317.9,4317.8,0.52048309]
[1757473595115,0.7079,4317.9,4317.8,0.52100046]
[1757473597316,0.7079,4317.9,4317.8,0.82145453]
[1757473598609,0.7079,4317.9,4317.8,0.82265712]
[1757473601110,0.7079,4317.9,4317.8,1.03695712]
[1757473601415,0.7079,4317.9,4317.8,0.71443086]
[1757473603113,0.7079,4317.9,4317.8,1.02273086]
[1757473603314,0.6486,4318.4,4318.3,0.4137]
[1757473603514,0.6486,4318.4,4318.3,1.54822037]
[1757473603714,0.6486,4318.4,4318.3,1.85652037]
[1757473603906,0.9439,4318.4,4318.3,1.85652037]
[1757473604111,0.9439,4318.4,4318.3,1.13452037]
[1757473605422,0.9439,4318.4,4318.3,1.33392037]
[1757473608419,0.9439,4318.4,4318.3,0.50013086]
[1757473609417,0.9439,4318.4,4318.3,0.70923086]
[1757473609722,0.9439,4318.4,4318.3,1.00773086]
[1757473610418,0.9439,4318.4,4318.3,0.70923086]
[1757473610820,0.9439,4318.4,4318.3,1.54302037]
[1757473611722,0.9439,4318.4,4318.3,1.54511785]
[1757473616722,0.9439,4318.4,4318.3,1.00982834]
[1757473617027,0.9439,4318.4,4318.3,0.71132834]
[1757473617225,0.9439,4318.4,4318.3,1.54511785]
[1757473617528,0.9439,4318.4,4318.3,1.13661785]
[1757473617731,0.9439,4318.4,4318.3,0.30282834]
[1757473617932,0.9439,4318.4,4318.3,1.13661785]
[1757473618634,0.9439,4318.4,4318.3,0.30282834]
[1757473620429,0.5313,4318.4,4318.3,1.01602834]
[1757473620637,0.236,4318.4,4318.3,1.01602834]
[1757473620822,0.236,4318.4,4318.3,2.23363823]
[1757473621333,0.236,4318.4,4318.3,1.01602834]
[1757473621834,0.236,4318.4,4318.3,2.23363823]
[1757473622038,0.3209,4319.0,4318.3,6.76892774]
[1757473622336,0.6812,4319.0,4318.9,0.3019]
[1757473622534,0.8842,4319.0,4318.9,0.53282834]
[1757473622747,1.0876,4319.0,4318.9,0.53282834]
[1757473623846,0.6812,4319.0,4318.9,0.60472834]
[1757473624245,0.8842,4319.0,4318.9,0.60472834]
[1757473625143,0.8842,4319.0,4318.9,0.53282834]
[1757473626941,1.0876,4319.0,4318.9,0.53282834]
[1757473629249,0.6812,4319.0,4318.9,0.53282834]
[1757473629449,0.6812,4319.0,4318.9,1.43851785]
[1757473630838,0.8842,4319.0,4318.9,1.36661785]
[1757473633342,0.8842,4319.0,4318.9,0.53282834]
[1757473633543,0.6812,4319.0,4318.9,1.85541261]
[1757473633847,0.8842,4319.0,4318.9,1.85541261]
[1757473634042,0.8842,4319.0,4318.9,1.78351261]
[1757473634945,0.8842,4319.0,4318.9,1.55351261]
[1757473634946,1.0876,4319.0,4318.9,1.55351261]
[1757473635153,1.98430989,4319.0,4318.5,0.83148024]
[1757473635445,0.7273,4318.6,4318.5,0.83148024]
[1757473636549,0.8526,4318.5,4318.4,0.83148024]
[1757473636858,1.0876,4318.5,4318.4,0.83148024]
[1757473637446,0.7667,4318.5,4318.2,1.25068427]
[1757473637750,0.6999,4318.3,4318.2,1.45838427]
[1757473638153,0.6999,4318.3,4318.2,1.96248427]
[1757473638554,0.6999,4318.3,4318.2,0.7118]
[1757473640558,0.4998,4318.3,4318.2,0.7118]
[1757473641157,0.2991,4318.3,4318.2,0.7118]
[1757473641357,0.5341,4318.5,4318.3,0.3096]
[1757473641558,0.5341,4318.5,4318.4,1.95982416]
[1757473642160,0.235,4318.5,4318.4,1.95982416]
[1757473642362,0.235,4318.5,4318.4,0.7118]
[1757473644855,0.7348,4318.5,4318.4,0.7118]
[1757473645159,1.0523,4318.5,4318.4,0.4022]
[1757473645357,1.0523,4318.5,4318.4,0.7118]
[1757473645655,1.0523,4318.5,4318.4,0.2077]
[1757473646952,1.0523,4318.5,4318.4,0.4022]
[1757473647154,1.0523,4318.5,4318.4,0.9986393]
[1757473647353,0.7348,4318.5,4318.4,0.9986393]
[1757473648060,0.5341,4318.5,4318.4,0.9986393]
[1757473648458,0.2991,4318.5,4318.4,2.66469212]
[1757473648658,0.2991,4318.7,4318.6,0.4022]
[1757473648863,0.4998,4318.7,4318.6,0.9986393]
[1757473649062,0.2991,4318.7,4318.6,0.9986393]
[1757473649452,0.2991,4318.7,4318.6,2.66469212]
[1757473650257,0.234,4318.8,4318.7,0.7118]
[1757473650562,0.234,4318.8,4318.7,0.9986393]
[1757473654065,0.234,4318.8,4318.7,0.99465935]
[1757473657966,0.5331,4318.8,4318.7,0.99465935]
[1757473658466,0.5331,4318.8,4318.7,2.02226128]
[1757473663873,0.234,4318.8,4318.7,2.02226128]
[1757473664372,0.234,4318.8,4318.7,3.6883141]
[1757473665571,0.234,4318.8,4318.7,2.02226128]
[1757473665871,0.234,4318.8,4318.7,3.68778214]
[1757473666870,0.234,4319.4,4318.7,3.37818214]
[1757473667071,0.4993,4319.3,4319.2,1.97888606]
[1757473667373,0.4993,4319.3,4319.2,2.26174541]
[1757473667374,0.3,4319.3,4319.2,2.26174541]
[1757473667571,0.4993,4319.3,4319.2,2.26174541]
[1757473667770,0.6934,4319.3,4319.2,2.26174541]
[1757473668373,0.6934,4319.3,4319.2,1.01255935]
[1757473668566,0.6934,4319.3,4319.2,1.52635374]
[1757473673162,0.6934,4319.3,4319.2,1.84545374]
[1757473673672,0.6934,4319.3,4319.2,1.56259439]
[1757473673872,0.6934,4319.3,4319.2,1.84560743]
[1757473675081,0.6934,4319.3,4319.2,1.01271304]
[1757473676581,0.6934,4319.3,4319.2,1.01271629]
[1757473677282,0.6934,4319.3,4319.2,2.26205787]
[1757473678475,0.6934,4319.3,4319.2,1.01271629]
[1757473682184,0.6934,4319.3,4319.2,0.28301629]
[1757473682583,0.6934,4319.3,4319.2,1.53323423]
[1757473682584,4.92492,4319.3,4319.2,1.53323423]
[1757473682981,0.4993,4319.3,4319.2,1.01271629]
[1757473683786,0.234,4319.6,4319.2,1.01271629]
[1757473683983,0.4993,4319.5,4319.4,0.7297]
[1757473684287,0.4993,4319.5,4319.4,2.04031822]
[1757473684881,0.4993,4319.5,4319.4,1.01271629]
[1757473685081,0.4993,4319.5,4319.4,2.04031822]
[1757473685292,0.3,4319.5,4319.4,2.04031822]
[1757473686793,0.4993,4319.5,4319.4,2.04031822]
[1757473690389,0.8111,4319.5,4319.4,2.04031822]
[1757473690586,0.8111,4319.5,4319.4,0.28301629]
[1757473690787,0.8111,4319.5,4319.4,1.53280205]
[1757473691691,0.8111,4319.5,4319.4,0.28301629]
[1757473694396,0.8111,4319.5,4319.4,1.53280205]
[1757473695494,0.8111,4319.5,4319.4,0.28301629]
[1757473699892,0.8111,4319.5,4319.4,0.48571629]
[1757473708303,0.8111,4319.5,4319.4,0.28301629]
[1757473708807,0.411,4319.3,4318.8,0.20158639]
[1757473709007,2.2770334,4319.1,4318.5,0.1248]
[1757473709208,1.02760193,4318.5,4318.4,0.3166]
[1757473709407,1.26160193,4318.5,4318.4,0.3166]
[1757473710008,0.5014011,4318.5,4318.4,0.5193]
[1757473715013,0.5014011,4318.5,4318.4,0.7214]
[1757473718514,0.234,4318.6,4318.5,0.5296]
[1757473718720,0.234,4318.6,4318.5,0.8462]
[1757473725731,33.359,4318.9,4318.8,0.4048]
[1757473725934,33.593,4318.9,4318.8,0.7214]
[1757473726935,33.5948,4318.9,4318.8,0.7214]
[1757473727131,33.593,4318.9,4318.8,0.7214]
[1757473733234,34.10082867,4318.9,4318.8,0.7214]
[1757473735342,34.10082867,4318.9,4318.8,0.3166]
[1757473736241,34.10082867,4318.9,4318.6,0.2992]
[1757473736544,0.50782867,4318.8,4318.5,0.1248]
[1757473736733,0.234,4318.7,4318.6,0.2992]
[1757473736937,0.74182867,4318.7,4318.6,0.2992]